bitfinex-derivatives/quotes_ETHF0:USTF0_20260305
["timestamp","ask_amount","ask_price","bid_price","bid_amount"]
[1772744112895,0.00520355,2093.1,2092.4,0.58422262]
[1772744113090,0.55490569,2092.9,2092.4,0.58422262]
[1772744113294,0.55490569,2092.7,2092.1,0.58422262]
[1772744114292,0.55490569,2092.7,2091.9,37.6878745]
[1772744114494,0.55490569,2092.7,2092.0,0.58422262]
[1772744116292,0.55490569,2092.5,2091.9,37.6878745]
[1772744116596,0.55490569,2092.5,2092.0,0.58422262]
[1772744117094,0.79380569,2092.6,2092.0,0.58422262]
[1772744119197,0.79382569,2092.4,2091.9,0.58422262]
[1772744120593,0.23892,2092.4,2091.9,0.58422262]
[1772744121199,0.79377569,2092.8,2091.9,0.58422262]
[1772744121400,0.79377569,2092.8,2092.0,0.58422262]
[1772744122202,0.55490569,2092.7,2092.0,0.58422262]
[1772744125507,0.23887,2092.8,2092.0,0.58422262]
[1772744125703,0.00520355,2093.1,2091.9,5.90365188]
[1772744125704,0.56010924,2093.1,2092.2,0.58422262]
[1772744125905,0.12807648,2093.1,2092.4,0.58422262]
[1772744126105,0.36692648,2093.0,2092.4,0.58422262]
[1772744126903,0.24413887,2093.0,2092.4,0.58422262]
[1772744130809,9.83298004,2093.6,2092.4,6.4878745]
[1772744130810,0.13627364,2093.3,2092.4,6.4878745]
[1772744131014,0.13627364,2093.3,2092.6,0.58114641]
[1772744131816,0.14246587,2093.3,2092.6,0.58114641]
[1772744132508,0.37510364,2093.2,2092.6,0.58114641]
[1772744132916,0.23883,2093.2,2092.6,0.58114641]
[1772744133818,0.00619223,2093.3,2092.6,0.58114641]
[1772744134124,0.37487459,2093.6,2092.7,0.58114641]
[1772744134916,0.23878,2093.6,2092.9,0.58114641]
[1772744135120,0.24231083,2093.6,2092.9,0.58114641]
[1772744135514,0.24231083,2093.6,2093.0,0.58114641]
[1772744137020,0.38240618,2093.6,2093.0,0.58114641]
[1772744138519,0.14009535,2093.5,2093.0,0.58114641]
[1772744140224,0.13977244,2093.3,2092.6,0.58114641]
[1772744140424,0.59080236,2092.9,2092.4,0.58114641]
[1772744140721,0.59080236,2092.7,2092.2,31.82614641]
[1772744142128,0.59080236,2092.7,2092.3,0.58114641]
[1772744143828,0.59080236,2092.7,2092.2,31.82614641]
[1772744144630,0.59080236,2092.5,2091.9,0.58114641]
[1772744145331,0.59080236,2093.1,2092.0,0.58114641]
[1772744146127,0.59080236,2093.0,2092.1,0.58114641]
[1772744146328,0.59080236,2093.0,2092.3,0.58114641]
[1772744149034,0.59080236,2092.8,2092.1,0.58114641]
[1772744149233,0.59080236,2092.8,2092.2,0.58114641]
[1772744149929,0.23886,2092.9,2092.2,0.58114641]
[1772744150533,0.82966236,2092.9,2092.2,0.58114641]
[1772744150731,0.59080236,2092.8,2092.2,0.58114641]
[1772744151633,0.59080236,2092.4,2091.7,5.90930785]
[1772744151837,5.87601,2093.0,2091.7,5.90930785]
[1772744151838,0.59080236,2092.2,2091.9,0.58114641]
[1772744152941,0.82973236,2092.3,2091.9,0.58114641]
[1772744153244,0.59080236,2092.5,2091.9,0.58114641]
[1772744153434,0.82969236,2092.7,2091.9,0.58114641]
[1772744153636,0.59080236,2092.6,2091.9,0.58114641]
[1772744155841,0.82971236,2092.5,2091.9,0.58114641]
[1772744156237,0.59080236,2092.4,2091.7,0.58680238]
[1772744156438,0.59080236,2092.2,2091.7,0.58680238]
[1772744158334,0.59080236,2092.0,2091.7,0.00565597]
[1772744158534,0.5949973,2092.0,2091.7,0.00565597]
[1772744158738,0.59080236,2091.8,2091.4,0.58114641]
[1772744159139,0.59080236,2091.8,2091.2,31.87814641]
[1772744159446,0.59080236,2091.8,2091.3,0.58114641]
[1772744159643,0.59080236,2091.8,2091.3,0.58503767]
[1772744160247,0.23898,2091.9,2091.3,0.58503767]
[1772744160741,0.54916958,2091.6,2091.3,0.58503767]
[1772744160937,0.54916958,2091.6,2091.0,5.90365188]
[1772744160938,0.54916958,2091.4,2091.0,0.53691808]
[1772744161947,0.54916958,2091.4,2091.0,0.00346331]
[1772744162448,0.78818958,2091.5,2091.0,0.54038139]
[1772744162640,0.54916958,2091.7,2091.0,0.54038139]
[1772744163044,0.54916958,2091.9,2091.0,0.54038139]
[1772744163446,0.23899,2091.8,2091.0,0.54038139]
[1772744163645,0.54916958,2091.5,2091.0,0.54038139]
[1772744165449,0.23901,2091.6,2091.0,0.54038139]
[1772744165647,0.54916958,2091.7,2091.0,0.54038139]
[1772744167150,0.23901,2091.6,2091.0,0.54038139]
[1772744167848,0.54916958,2091.5,2091.0,0.54038139]
[1772744168250,0.78817958,2091.6,2091.0,0.54038139]
[1772744169048,0.23901,2091.6,2091.0,0.54038139]
[1772744169255,0.54916958,2091.8,2091.0,0.54038139]
[1772744170153,0.23901,2091.6,2091.0,0.54038139]
[1772744170350,0.54916958,2091.8,2091.0,0.54038139]
[1772744171150,0.23901,2091.6,2091.0,0.54038139]
[1772744171451,0.54916958,2091.8,2091.0,0.54038139]
[1772744171753,0.54916958,2091.7,2091.0,0.54038139]
[1772744172157,0.78817958,2091.6,2091.0,0.54038139]
[1772744174051,0.55336452,2092.0,2091.2,0.53691808]
[1772744174254,0.55336452,2092.0,2091.3,0.53691808]
[1772744174555,0.54916958,2091.8,2091.3,0.53691808]
[1772744175654,0.50620405,2092.0,2091.3,0.53691808]
[1772744175855,0.23893,2092.3,2091.5,0.53691808]
[1772744176860,0.24458384,2092.3,2091.5,0.53691808]
[1772744178657,0.00411619,2092.8,2091.5,0.53691808]
[1772744179659,0.00777811,2092.8,2091.5,0.53691808]
[1772744179859,0.00411619,2092.7,2091.5,0.53691808]
[1772744180159,0.00366192,2092.8,2091.5,0.53691808]
[1772744180160,0.23892,2092.4,2091.5,0.53691808]
[1772744180358,0.24303619,2092.4,2091.5,0.53691808]
[1772744181762,0.23892,2092.4,2091.6,0.59405323]
[1772744181957,0.24579244,2092.8,2091.8,0.59405323]
[1772744184165,0.0018391,2093.1,2092.4,0.59475894]
[1772744184463,0.0018391,2093.2,2092.4,0.59475894]
[1772744185166,0.00336003,2093.2,2092.4,0.59475894]
[1772744185462,0.00086999,2093.1,2092.4,0.59475894]
[1772744185863,0.00336003,2093.2,2092.4,0.59475894]
[1772744186064,0.00423002,2093.2,2092.4,0.59475894]
[1772744187564,0.00506532,2093.1,2092.4,0.59475894]
[1772744191372,0.23885,2093.0,2092.4,0.59475894]
[1772744191876,0.23885,2093.0,2092.0,0.59837168]
[1772744192077,0.2389,2092.6,2092.0,0.59837168]
[1772744195377,0.23885,2093.0,2092.0,0.59837168]
[1772744203176,0.23885,2093.0,2092.1,0.60672225]
[1772744203975,0.00336003,2093.2,2092.6,0.53807287]
[1772744204176,0.00336003,2093.2,2092.6,0.54405624]
[1772744206887,0.21857968,2093.2,2092.6,0.54405624]
[1772744207085,0.33529544,2092.8,2092.6,0.00598337]
[1772744207284,0.23886,2092.9,2092.6,0.00598337]
[1772744207481,0.57415544,2092.9,2092.6,0.00598337]
[1772744207680,0.33529544,2092.8,2092.6,3.37e-06]
[1772744207887,0.57417544,2092.7,2092.6,3.37e-06]
[1772744208387,0.23888,2092.7,2092.6,3.37e-06]
[1772744210992,0.23888,2092.7,2092.6,0.53807624]
[1772744211693,0.3374533,2093.0,2092.6,0.53807624]
[1772744211889,0.23884,2093.1,2092.6,0.53807624]
[1772744212191,0.3374533,2093.0,2092.6,0.53807624]
[1772744214694,0.57725522,2093.1,2092.6,0.53807624]
[1772744214894,0.33841522,2093.0,2092.6,0.53807624]
[1772744216995,0.55170495,2092.8,2092.3,0.53807287]
[1772744217392,0.23886,2092.9,2092.3,0.53807287]
[1772744218095,0.23886,2092.9,2092.3,0.54348184]
[1772744220594,0.55063399,2092.6,2092.3,0.54159024]
[1772744220794,0.78951399,2092.7,2092.3,0.54159024]
[1772744223396,0.23884,2093.1,2092.3,0.54159024]
[1772744223591,0.23884,2093.1,2092.4,0.53618127]
[1772744223797,0.55063399,2093.0,2092.4,0.53618127]
[1772744225202,0.78947399,2093.1,2092.4,0.53618127]
[1772744226102,0.23884,2093.1,2092.5,6.43983315]
[1772744226302,0.23884,2093.1,2092.6,0.53618127]
[1772744226799,0.78947399,2093.1,2092.6,0.53618127]
[1772744227002,0.55063399,2093.0,2092.6,0.53618127]
[1772744228906,0.78947399,2093.1,2092.6,0.53618127]
[1772744229101,0.23884,2093.1,2092.6,0.53618127]
[1772744229301,0.78947399,2093.1,2092.6,0.53618127]
[1772744229503,0.55063399,2092.8,2092.3,13.29906237]
[1772744229703,0.55063399,2092.8,2092.3,0.54159024]
[1772744230205,0.55063399,2092.6,2092.3,0.00540897]
[1772744230805,0.78954399,2092.5,2092.3,8.97e-06]
[1772744231006,0.55063399,2092.4,2092.3,8.97e-06]
[1772744231704,0.55063399,2092.4,2092.0,0.53618127]
[1772744231904,0.55063399,2092.4,2091.9,0.53618127]
[1772744232701,0.78954399,2092.5,2091.9,0.53993967]
[1772744233303,0.55063399,2092.4,2091.9,0.53993967]
[1772744233505,0.23891,2092.5,2091.9,0.53993967]
[1772744233807,0.78954399,2092.5,2091.9,0.53993967]
[1772744236714,0.55063399,2092.4,2091.9,0.53993967]
[1772744237014,0.78956399,2092.3,2091.9,0.53993967]
[1772744237210,0.55063399,2092.3,2091.9,0.53993967]
[1772744237412,0.55063399,2092.5,2091.9,0.53993967]
[1772744241526,0.55063399,2093.0,2092.3,0.53618127]
[1772744243217,0.78948399,2093.1,2092.3,0.53618127]
[1772744243609,0.55063399,2093.0,2092.3,0.53618127]
[1772744248314,0.00336003,2093.2,2092.5,0.57238471]
[1772744249223,0.5581725,2093.3,2092.6,0.57238471]
[1772744250223,0.56294568,2093.3,2092.6,0.57238471]
[1772744253620,0.57652192,2093.7,2092.8,6.45242926]
[1772744253821,0.57652192,2093.7,2092.9,0.54877738]
[1772744254028,0.57652192,2093.9,2093.1,0.54877738]
[1772744254623,0.57652192,2094.1,2093.1,0.54877738]
[1772744254822,0.57652192,2094.1,2093.2,0.54877738]
[1772744255928,0.57652192,2094.3,2093.4,0.54877738]
[1772744256128,0.23869,2094.5,2093.4,0.54877738]
[1772744256331,0.57652192,2094.4,2093.5,0.54877738]
[1772744256923,0.58010047,2094.4,2093.5,0.55488772]
[1772744257129,0.00357855,2094.4,2093.5,0.55488772]
[1772744257528,0.58010047,2094.4,2093.5,0.55488772]
[1772744258120,0.57652192,2094.9,2093.8,0.54877738]
[1772744259228,0.58265082,2094.9,2093.8,0.54877738]
[1772744261028,0.23865,2094.8,2093.8,0.54877738]
[1772744261225,0.57652192,2094.7,2093.8,0.54877738]
[1772744262728,0.57652192,2094.5,2093.8,0.54877738]
[1772744273138,0.57652192,2094.3,2093.6,0.54877738]
[1772744277038,0.57652192,2094.8,2093.6,0.54877738]
[1772744277245,0.57652192,2094.8,2094.0,0.54877738]
[1772744277441,0.57652192,2094.6,2094.0,0.54877738]
[1772744278944,0.57652192,2094.8,2094.0,0.54877738]
[1772744281049,0.55604476,2094.4,2093.6,0.58972028]
[1772744281249,0.55604476,2094.4,2093.5,0.00611034]
[1772744281544,0.55604476,2094.2,2093.5,0.00611034]
[1772744282446,0.55604476,2094.0,2093.5,0.59583062]
[1772744286955,0.55604476,2093.6,2092.9,0.58972028]
[1772744287758,0.55604476,2093.6,2092.9,0.59462826]
[1772744292657,0.55604476,2093.4,2092.9,0.59462826]
[1772744292859,0.5620629,2093.4,2092.9,0.59462826]
[1772744293254,0.55604476,2093.6,2092.9,0.59462826]
[1772744294362,0.55941941,2093.6,2092.9,0.59462826]
[1772744296060,0.55604476,2093.4,2092.9,0.00490798]
[1772744296263,0.55604476,2093.4,2092.9,0.59462826]
[1772744297665,0.79486476,2093.5,2092.9,0.59462826]
[1772744298868,0.55604476,2093.4,2092.9,0.59462826]
[1772744300467,0.23882,2093.5,2092.9,0.59462826]
[1772744300671,0.49948914,2093.5,2092.9,0.59462826]
[1772744304177,0.00337465,2093.6,2092.9,0.59462826]
[1772744304373,0.25940619,2093.8,2092.9,0.59462826]
[1772744304577,0.25940619,2093.8,2093.0,0.58972028]
[1772744305474,0.00401129,2093.8,2093.0,0.58972028]
[1772744306379,0.25725121,2093.8,2093.0,0.58972028]
[1772744308378,0.23877,2093.9,2093.2,0.58972028]
[1772744308779,0.24286127,2093.8,2093.2,0.58972028]
[1772744309282,0.24870542,2093.8,2093.2,0.58972028]
[1772744311380,0.24870542,2093.8,2093.1,0.56415529]
[1772744311381,0.24779425,2093.6,2093.1,0.56415529]
[1772744311774,0.48658425,2093.7,2093.1,0.56415529]
[1772744314188,0.2430387,2093.6,2093.1,0.56415529]
[1772744314486,0.4818287,2093.7,2093.1,0.56415529]
[1772744317481,0.23879,2093.7,2093.1,0.56415529]
[1772744318482,0.24696725,2093.6,2093.3,0.79547186]
[1772744318687,0.00179599,2093.4,2093.0,2.60251731]
[1772744318887,0.00179599,2093.4,2092.9,0.600017]
[1772744320287,0.23882,2093.5,2093.1,0.59510902]
[1772744320489,0.24061599,2093.5,2093.1,0.59510902]
[1772744320689,0.00421434,2093.4,2093.1,0.59510902]
[1772744322485,0.23882,2093.5,2093.1,0.59510902]
[1772744322790,0.24303434,2093.5,2093.1,0.59510902]
[1772744324991,0.00349315,2093.4,2093.1,0.59510902]
[1772744325190,0.23882,2093.5,2093.1,0.59510902]
[1772744325393,0.24231315,2093.5,2093.1,0.59510902]
[1772744327696,0.00239115,2093.4,2093.1,0.59510902]
[1772744327991,0.00584415,2093.8,2093.1,0.59510902]
[1772744329396,0.23879,2093.7,2093.1,0.59510902]
[1772744330689,0.00267896,2093.4,2092.9,0.59957552]
[1772744330892,0.00267896,2093.2,2092.6,0.59466754]
[1772744331290,0.23884,2093.3,2092.6,0.59466754]
[1772744331895,0.23884,2093.3,2092.6,0.59905275]
[1772744332101,0.00267896,2093.5,2092.6,0.59905275]
[1772744333096,0.00554272,2093.6,2092.6,0.59905275]
[1772744333499,0.00554272,2093.7,2092.6,0.59905275]
[1772744333701,0.00554272,2093.7,2092.7,0.59323566]
[1772744334300,0.24463415,2093.8,2092.8,0.59323566]
[1772744334505,0.24463415,2093.8,2093.0,0.59323566]
[1772744335299,0.24463415,2093.8,2093.1,0.59418666]
[1772744335605,0.00364072,2094.1,2093.1,0.59418666]
[1772744336704,0.00364072,2094.0,2093.1,0.59418666]
[1772744337900,0.00804273,2094.1,2093.1,0.59418666]
[1772744338109,0.0034554,2094.1,2093.1,0.59418666]
[1772744338502,0.0034554,2094.1,2093.2,0.59371335]
[1772744339308,0.00127239,2094.0,2093.2,0.59371335]
[1772744340208,0.00092573,2094.0,2093.2,0.59371335]
[1772744340505,0.23969573,2093.9,2093.2,0.59371335]
[1772744340711,0.0034554,2094.1,2093.2,0.59371335]
[1772744340910,6.26391804,2094.8,2093.6,0.59334849]
[1772744341111,0.00491804,2095.2,2094.0,0.59334849]
[1772744341403,0.00491804,2095.1,2094.2,0.59334849]
[1772744342006,0.00450847,2095.1,2094.2,0.59706344]
[1772744342402,0.23857,2095.7,2094.6,0.59109425]
[1772744342608,0.23857,2095.7,2094.7,0.59109425]
[1772744343012,0.01287326,2095.6,2094.7,0.59109425]
[1772744343212,0.01287326,2095.4,2094.7,0.59109425]
[1772744343410,0.00347932,2095.4,2094.7,0.59109425]
[1772744343911,0.01287326,2095.8,2094.7,0.59109425]
[1772744344307,1.08940778,2096.5,2095.1,0.58937088]
[1772744344510,0.85092778,2096.5,2095.4,0.58937088]
[1772744344705,0.85673621,2096.5,2095.4,0.58937088]
[1772744344905,0.85673621,2096.5,2095.5,0.58779318]
[1772744345107,0.25453865,2096.2,2095.5,0.58779318]
[1772744345415,0.23851,2096.2,2095.5,0.35149001]
[1772744346106,1.10906803,2096.5,2095.5,0.35149001]
[1772744346310,0.72903482,2097.4,2095.9,0.56859601]
[1772744346505,0.49065482,2097.1,2096.0,0.56859601]
[1772744346705,0.23844,2096.8,2096.0,0.56859601]
[1772744347311,0.00517043,2096.8,2096.0,0.57479756]
[1772744348211,0.53172585,2096.8,2096.0,0.57479756]
[1772744348410,0.76492542,2097.5,2096.0,0.57479756]
[1772744348617,0.52655542,2097.4,2096.0,0.57479756]
[1772744349520,0.53190911,2097.2,2096.0,0.57479756]
[1772744349913,0.53190911,2097.0,2096.0,0.57479756]
[1772744350714,0.53257634,2097.1,2096.0,0.57479756]
[1772744350916,0.53257634,2096.9,2096.0,0.57479756]
[1772744351220,0.55236968,2096.3,2096.0,1.55e-06]
[1772744352314,0.23849,2096.4,2096.0,0.56859756]
[1772744352514,0.55236968,2096.6,2096.0,0.56859756]
[1772744352710,0.55236968,2096.9,2096.0,0.56859756]
[1772744352910,0.55236968,2096.7,2096.0,0.56859756]
[1772744354419,0.55236968,2097.2,2096.0,0.56859756]
[1772744354618,0.55236968,2097.0,2096.0,0.56859756]
[1772744355217,0.55236968,2097.2,2096.0,0.56859756]
[1772744355416,0.004837,2097.4,2096.2,0.56859601]
[1772744356022,0.004837,2097.4,2096.3,40.8]
[1772744356221,0.004837,2097.4,2096.4,0.56859601]
[1772744356416,0.004837,2097.4,2096.6,0.56859601]
[1772744356616,0.55236968,2097.8,2096.6,0.56859601]
[1772744357315,0.55236968,2097.6,2096.6,0.56859601]
[1772744357520,0.55236968,2097.4,2096.6,0.56859601]
[1772744358423,0.0034083,2097.6,2096.6,0.56859601]
[1772744358719,0.79067968,2098.0,2096.8,0.56859601]
[1772744359219,0.55236968,2097.9,2096.8,0.56859601]
[1772744359715,0.55766176,2097.9,2096.8,0.56859601]
[1772744359915,0.55236968,2097.7,2096.8,0.56859601]
[1772744360319,0.23833,2097.8,2096.8,0.56859601]
[1772744360623,0.00529208,2097.9,2096.8,0.56859601]
[1772744361023,0.55766176,2097.9,2096.8,0.56859601]
[1772744361221,0.00529208,2097.9,2096.8,0.56859601]
[1772744361827,0.55236968,2097.8,2096.8,0.56859601]
[1772744362418,0.00529208,2097.9,2096.8,0.56859601]
[1772744362622,5.85949,2099.1,2096.8,0.56859601]
[1772744362623,0.55236968,2098.7,2097.6,0.56859601]
[1772744362826,0.55236968,2098.5,2097.6,0.56859601]
[1772744363323,0.55236968,2098.3,2097.6,0.56859601]
[1772744363529,0.5572556,2098.3,2097.6,0.57328681]
[1772744363723,0.55236968,2099.6,2097.6,0.57328681]
[1772744363924,6.09697,2099.3,2097.8,0.56859601]
[1772744364229,0.55236968,2098.8,2097.8,0.56859601]
[1772744364429,0.55236968,2098.3,2097.6,0.57328681]
[1772744364825,0.55645103,2098.3,2097.6,0.57328681]
[1772744365422,0.00408135,2098.3,2097.6,0.57328681]
[1772744365627,0.55645103,2098.3,2097.6,0.0046908]
[1772744366224,0.55236968,2098.1,2096.4,0.56859601]
[1772744366426,0.55236968,2097.9,2096.4,0.56859601]
[1772744366628,0.55236968,2097.9,2096.6,0.56859601]
[1772744366923,0.55236968,2097.9,2096.8,0.56859601]
[1772744367428,0.55236968,2097.9,2096.8,0.57470103]
[1772744368333,0.55236968,2098.2,2096.8,0.57470103]
[1772744368627,0.00408135,2098.3,2097.0,0.54167663]
[1772744368823,0.55320128,2098.3,2097.0,0.54167663]
[1772744370332,0.55810051,2098.1,2097.0,0.54167663]
[1772744370528,0.55810051,2097.7,2096.8,0.57584168]
[1772744370734,0.55810051,2097.5,2096.8,0.57584168]
[1772744371133,0.55810051,2097.3,2096.8,0.00610502]
[1772744371333,0.55810051,2097.3,2095.8,0.56973666]
[1772744371531,0.55810051,2096.9,2095.8,0.56973666]
[1772744371734,0.55810051,2096.5,2094.8,30.03272448]
[1772744372034,0.55810051,2096.4,2094.9,0.56973666]
[1772744372230,0.55810051,2096.3,2094.9,0.57505239]
[1772744372435,5.87131472,2096.4,2094.9,0.57505239]
[1772744372436,0.55810051,2096.1,2094.9,0.57505239]
[1772744372633,0.55810051,2096.2,2094.9,0.57505239]
[1772744372831,0.55810051,2096.0,2094.9,0.57505239]
[1772744373026,0.55810051,2095.8,2094.9,0.57505239]
[1772744373230,0.55810051,2095.8,2094.4,0.56973666]
[1772744373231,0.55810051,2095.5,2094.4,0.56973666]
[1772744373435,0.55810051,2095.4,2094.4,0.56973666]
[1772744373635,0.55810051,2095.0,2093.7,0.56973666]
[1772744374431,0.55810051,2095.0,2093.7,0.57320793]
[1772744374631,0.55810051,2095.5,2093.7,0.57320793]
[1772744374937,0.55810051,2094.9,2093.7,0.57320793]
[1772744375134,0.55810051,2094.7,2093.7,0.57320793]
[1772744375529,0.55810051,2094.3,2093.2,0.56973666]
[1772744375737,0.55810051,2094.1,2093.0,0.56973666]
[1772744376038,0.55810051,2094.8,2093.0,0.56973666]
[1772744376635,0.55810051,2094.8,2093.2,0.56973666]
[1772744377337,0.55810051,2094.8,2093.1,0.23886]
[1772744377338,0.55810051,2094.8,2093.4,0.56973666]
[1772744378238,0.55810051,2094.8,2093.5,0.56973666]
[1772744378836,0.00590774,2094.9,2093.1,0.56973666]
[1772744378837,0.55810051,2094.4,2093.1,0.56973666]
[1772744379143,0.55810051,2094.3,2093.1,0.56973666]
[1772744379442,0.55810051,2094.2,2093.1,0.56973666]
[1772744379643,6.11164,2094.3,2093.0,0.00526718]
[1772744379644,0.55810051,2093.9,2093.0,0.00526718]
[1772744379941,0.55810051,2093.6,2093.0,0.00526718]
[1772744380341,0.55810051,2093.6,2092.6,0.56973666]
[1772744380542,0.55810051,2093.4,2092.6,0.56973666]
[1772744381342,0.56202204,2093.4,2092.6,0.57361042]
[1772744381542,0.56202204,2093.4,2092.6,0.00387376]
[1772744381738,0.56202204,2093.4,2092.6,0.57361042]
[1772744382139,0.56202204,2093.4,2092.6,0.00387376]
[1772744383241,0.56202204,2093.4,2092.6,0.57361042]
[1772744383944,0.56202204,2093.4,2092.6,0.00387376]
[1772744384239,0.56202204,2093.4,2091.7,0.56973666]
[1772744384240,0.55810051,2092.6,2091.7,0.56973666]
[1772744384439,0.55810051,2093.2,2091.7,0.56973666]
[1772744384646,0.55810051,2093.0,2091.7,0.56973666]
[1772744385147,0.55810051,2093.0,2091.7,0.57365313]
[1772744386948,0.55810051,2092.8,2091.7,0.57365313]
[1772744387145,0.23891,2092.7,2091.7,0.57365313]
[1772744387445,0.55810051,2092.6,2091.7,0.57365313]
[1772744387950,0.55810051,2092.4,2091.7,0.57365313]
[1772744388350,0.23893,2092.5,2091.7,0.57365313]
[1772744388551,5.87654,2093.0,2091.7,0.57365313]
[1772744388552,6.257,2092.8,2091.8,0.56973666]
[1772744388747,0.55810051,2092.7,2091.8,0.56973666]
[1772744389843,0.55810051,2092.5,2091.8,0.56973666]
[1772744390450,0.79702051,2092.6,2091.8,0.56973666]
[1772744390750,0.55810051,2092.3,2091.7,0.00391647]
[1772744391352,0.55810051,2092.1,2091.7,0.00391647]
[1772744391552,0.23899,2092.0,2091.7,0.00391647]
[1772744391851,0.79709051,2092.0,2091.3,0.56973666]
[1772744392344,0.79709051,2092.0,2090.8,40.8]
[1772744392345,0.55810051,2092.8,2091.9,0.56973666]
[1772744392545,0.23889,2092.9,2092.0,0.56973666]
[1772744392752,0.79699051,2092.9,2092.0,0.57324204]
[1772744393350,0.23889,2092.9,2092.0,0.57324204]
[1772744394148,0.79699051,2092.9,2092.0,0.57324204]
[1772744394353,0.55810051,2092.8,2092.0,0.57324204]
[1772744395352,0.56202204,2093.4,2092.2,0.56973666]
[1772744395650,0.55810051,2093.2,2092.2,0.56973666]
[1772744396256,0.23886,2093.1,2092.2,0.56973666]
[1772744396752,0.55810051,2093.2,2092.2,0.56973666]
[1772744397050,0.55810051,2093.2,2092.0,3.01806423]
[1772744397051,0.56202204,2093.4,2092.4,0.56973666]
[1772744397353,0.56202204,2093.4,2092.0,0.00350538]
[1772744397354,0.79691051,2093.6,2092.7,0.56973666]
[1772744397553,0.23875,2094.1,2093.3,0.56973666]
[1772744397955,0.55810051,2094.4,2093.3,0.56973666]
[1772744398253,0.55810051,2093.8,2092.6,0.56973666]
[1772744398457,0.00368153,2093.8,2092.8,0.56973666]
[1772744398752,0.23887,2093.1,2092.4,0.56973666]
[1772744399658,0.24329118,2093.1,2092.4,0.56973666]
[1772744400052,0.24329118,2093.1,2092.1,40.8]
[1772744400053,0.81504216,2092.9,2092.1,41.37655689]
[1772744400255,0.57615216,2092.6,2092.0,0.00350538]
[1772744400460,0.57615216,2092.6,2092.0,0.58006227]
[1772744400761,0.57615216,2092.9,2092.0,0.58006227]
[1772744401053,0.00442118,2093.1,2092.0,0.58006227]
[1772744401254,0.57615216,2092.9,2092.0,0.58006227]
[1772744401459,0.57615216,2092.7,2092.0,0.58006227]
[1772744402060,0.81507216,2092.6,2092.0,0.00350538]
[1772744402363,0.81512216,2092.2,2091.5,0.57655689]
[1772744402961,0.2389,2092.8,2091.5,0.57655689]
[1772744403162,0.2389,2092.8,2091.6,0.57655689]
[1772744403362,0.57615216,2092.9,2091.8,0.57655689]
[1772744403751,0.58057334,2093.1,2091.9,0.57655689]
[1772744404353,0.58057334,2093.1,2092.0,4.43128137]
[1772744404354,0.00442118,2093.1,2092.0,4.43128137]
[1772744404555,0.00442118,2093.1,2092.3,0.57655689]
[1772744405153,0.00442118,2093.1,2092.3,4.43128137]
[1772744405360,0.00442118,2093.1,2092.4,0.57655689]
[1772744405963,0.23884,2093.4,2092.4,0.57655689]
[1772744406162,0.23884,2093.4,2092.5,0.57655689]
[1772744406363,0.57615216,2093.7,2092.6,0.57655689]
[1772744406658,0.23877,2094.0,2093.0,0.57655689]
[1772744406960,0.23877,2094.0,2093.1,0.57655689]
[1772744407261,0.0047596,2094.0,2093.1,4.43743394]
[1772744407461,0.0047596,2094.0,2093.3,0.57655689]
[1772744407658,0.58091176,2094.0,2093.3,0.57655689]
[1772744408163,0.0047596,2094.0,2093.3,0.57655689]
[1772744409254,0.58091176,2094.0,2093.2,40.8]
[1772744409457,0.23877,2093.9,2093.2,41.37655689]
[1772744409757,0.23866,2094.9,2093.6,0.57655689]
[1772744410062,0.57615216,2094.9,2094.1,0.48658345]
[1772744410262,0.57615216,2094.7,2093.8,0.48658345]
[1772744410663,0.58013117,2094.7,2093.8,0.48658345]
[1772744421261,0.00397901,2094.7,2093.8,0.48658345]
[1772744422666,0.00397901,2094.7,2094.0,0.49052869]
[1772744423866,0.58013117,2094.7,2094.0,0.49052869]
[1772744424070,0.57615216,2094.3,2093.8,0.48958257]
[1772744424366,0.57615216,2094.3,2093.6,0.48958257]
[1772744429670,0.54903301,2094.1,2093.4,0.5060385]
[1772744429864,0.54903301,2093.9,2093.3,40.8]
[1772744430063,0.54903301,2093.9,2093.2,0.50605286]
[1772744432468,0.54903301,2093.9,2093.3,3.59504895]
[1772744432672,0.54903301,2093.9,2093.4,0.58714269]
[1772744433771,0.54903301,2093.9,2093.1,45.32189304]
[1772744434472,0.54903301,2093.7,2093.1,45.32189304]
[1772744434864,0.54903301,2093.7,2093.2,0.58714269]
[1772744435174,0.54903301,2093.7,2093.2,3.92859778]
[1772744435374,0.54903301,2093.7,2093.2,4.51574047]
[1772744436174,0.54903301,2093.7,2093.1,3.93475035]
[1772744436369,0.54903301,2093.5,2093.1,0.59329526]
[1772744437075,0.78781301,2093.6,2093.1,4.52189304]
[1772744437276,0.78781301,2093.6,2093.1,0.59329526]
[1772744438476,0.54903301,2093.9,2093.1,0.59329526]
[1772744438677,0.54903301,2093.9,2093.2,0.58714269]
[1772744439872,0.23874,2094.0,2093.3,0.58714269]
[1772744440275,0.23874,2094.0,2093.4,0.58714269]
[1772744440474,0.78777301,2094.0,2093.4,0.58714269]
[1772744442582,0.54903301,2093.9,2093.4,0.58714269]
[1772744442783,0.23876,2093.8,2093.2,4.51574047]
[1772744442977,0.54903301,2094.6,2093.3,0.58714269]
[1772744443178,0.54903301,2094.6,2093.6,0.58714269]
[1772744444185,0.54903301,2094.2,2093.6,0.58714269]
[1772744444882,0.78774301,2094.3,2093.6,0.58714269]
[1772744445285,0.54903301,2094.6,2093.8,0.58714269]
[1772744445486,0.54903301,2094.2,2093.6,0.58714269]
[1772744445983,0.54903301,2094.0,2093.6,0.58714269]
[1772744446190,0.54903301,2094.0,2093.3,0.58714269]
[1772744446989,0.54903301,2093.8,2093.3,0.58714269]
[1772744447383,0.54903301,2093.8,2093.2,3.92859778]
[1772744447683,0.54903301,2093.8,2093.3,0.58714269]
[1772744447882,0.23875,2093.9,2093.4,0.58714269]
[1772744448087,0.54903301,2094.2,2093.4,0.58714269]
[1772744450392,0.23873,2094.1,2093.4,0.58714269]
[1772744450690,0.78776301,2094.1,2093.4,0.58714269]
[1772744451290,0.78776301,2094.1,2093.5,0.58714269]
[1772744451788,0.54903301,2094.0,2093.5,0.58714269]
[1772744452893,0.54903301,2094.0,2093.4,3.92859778]
[1772744453093,0.54903301,2094.0,2093.3,4.51574047]
[1772744453289,0.54903301,2093.8,2093.4,3.92859778]
[1772744453495,0.54903301,2093.8,2093.4,4.51574047]
[1772744455200,0.54903301,2094.1,2093.5,0.58714269]
[1772744455800,0.54903301,2094.1,2093.5,4.51574047]
[1772744456499,0.54903301,2094.1,2093.6,0.58714269]
[1772744459198,0.54903301,2094.1,2093.6,4.51574047]
[1772744459400,0.54903301,2094.1,2093.7,0.58714269]
[1772744459894,0.79638794,2094.3,2093.7,3.92859778]
[1772744460108,0.79638794,2094.3,2093.8,0.58358267]
[1772744460300,0.79638794,2094.3,2093.9,0.58358267]
[1772744461297,0.55767794,2094.2,2093.8,0.58358267]
[1772744461498,0.55767794,2094.2,2093.7,4.51218045]
[1772744461798,0.55767794,2094.2,2093.7,3.92859778]
[1772744462200,0.55767794,2094.2,2093.7,4.51218045]
[1772744462396,0.55767794,2094.2,2093.8,0.58358267]